bitfinex/quotes_ETHUSD_20240721
["timestamp","ask_amount","ask_price","bid_price","bid_amount"]
[1721548634898,0.60098533,3491.8,3491.1,2.8644]
[1721548635091,2.4621,3491.6,3491.1,2.8644]
[1721548635274,3.06308533,3491.6,3491.1,2.8644]
[1721548635480,2.4621,3491.6,3491.1,2.8644]
[1721548637271,2.4621,3491.6,3490.9,2.86458]
[1721548637599,2.4621,3491.6,3491.0,0.572933]
[1721548638168,5.32613,3491.6,3490.9,2.86458]
[1721548638580,5.32613,3491.6,3490.7,2.86475]
[1721548638804,5.92711533,3491.6,3490.7,2.86475]
[1721548639506,3.06308533,3491.6,3490.5,3.31381261]
[1721548639681,0.89989388,3491.8,3490.5,3.31381261]
[1721548639682,2.4621,3491.2,3490.5,3.31381261]
[1721548639881,2.4621,3491.2,3490.5,3.71355926]
[1721548640093,2.4621,3491.2,3490.5,0.84864926]
[1721548640400,2.4621,3491.2,3490.3,2.86508]
[1721548640401,2.86449,3491.1,3490.3,2.86508]
[1721548640615,2.86451,3491.0,3490.3,2.86508]
[1721548641190,2.86451,3491.0,3490.2,2.3076]
[1721548641610,2.86495,3490.5,3490.2,0.015]
[1721548643066,2.86476,3490.7,3490.2,0.015]
[1721548643771,2.86501,3490.4,3490.2,0.015]
[1721548646001,5.32711,3490.4,3490.2,0.015]
[1721548647204,2.86508,3490.3,3490.2,0.015]
[1721548648303,2.4621,3490.4,3490.2,0.015]
[1721548651517,5.32713,3490.4,3490.2,0.015]
[1721548652716,2.86508,3490.3,3490.2,0.015]
[1721548653989,6.15009,3490.3,3490.2,0.015]
[1721548657093,9.01517,3490.3,3490.2,0.015]
[1721548660200,9.56517,3490.3,3490.2,0.015]
[1721548662431,5.33088,3490.3,3490.2,0.015]
[1721548662652,2.86508,3490.3,3490.2,0.015]
[1721548663232,5.73016,3490.3,3490.2,0.015]
[1721548663839,2.86508,3490.3,3490.2,0.015]
[1721548666839,6.28016,3490.3,3490.2,0.015]
[1721548667046,7.441242,3490.3,3490.2,0.015]
[1721548671747,4.576162,3490.3,3490.2,0.015]
[1721548671942,2.86508,3490.3,3490.2,0.015]
[1721548682551,3.46606533,3490.3,3490.2,0.015]
[1721548684329,2.86508,3490.3,3490.2,0.015]
[1721548684592,3.76497388,3490.3,3490.2,0.015]
[1721548685556,3.76636401,3490.3,3490.2,0.015]
[1721548686344,3.79834461,3490.3,3490.2,0.015]
[1721548687339,4.0649385,3490.3,3490.2,0.015]
[1721548688862,2.86508,3490.3,3490.2,0.015]
[1721548689168,4.06776053,3490.3,3490.2,0.015]
[1721548689354,2.86508,3490.3,3490.2,0.015]
[1721548689556,4.06784742,3490.3,3490.2,0.015]
[1721548690241,2.86508,3490.3,3490.2,0.015]
[1721548695371,4.36919645,3490.3,3490.2,0.015]
[1721548697547,4.36960779,3490.3,3490.2,0.015]
[1721548699578,4.37001817,3490.3,3490.2,0.015]
[1721548700356,5.27407032,3490.3,3490.2,0.015]
[1721548700887,5.27412772,3490.3,3490.2,0.015]
[1721548701248,3.76913215,3490.3,3490.2,0.015]
[1721548709654,4.67125622,3490.5,3490.2,0.015]
[1721548709897,1.505236,3490.3,3490.2,0.015]
[1721548710259,2.865,3490.4,3490.2,0.015]
[1721548710593,1.5052087,3490.3,3490.2,0.015]
[1721548710756,4.3702087,3490.4,3490.2,0.015]
[1721548712977,1.5052087,3490.3,3490.2,0.015]
[1721548713182,4.3702887,3490.3,3490.2,0.015]
[1721548713389,3.58858487,3490.3,3490.2,0.015]
[1721548713759,6.45366487,3490.3,3490.2,0.015]
[1721548713977,9.43326487,3490.3,3490.2,0.015]
[1721548716473,7.00366487,3490.3,3490.2,0.015]
[1721548718492,7.26353198,3490.3,3490.2,0.015]
[1721548720877,7.00366487,3490.3,3490.2,0.015]
[1721548721401,7.26352956,3490.3,3490.2,0.015]
[1721548722690,7.00366487,3490.3,3490.2,0.015]
[1721548740135,6.28016,3490.3,3490.2,0.015]
[1721548741224,3.41508,3490.3,3490.2,0.015]
[1721548741539,1.20358813,3490.4,3490.3,2.3618]
[1721548742037,1.20358813,3490.5,3490.3,2.3618]
[1721548743339,0.90237036,3490.4,3490.3,2.3618]
[1721548745302,1.50373107,3490.7,3490.3,2.3618]
[1721548745303,0.90237036,3490.5,3490.3,2.3618]
[1721548746310,0.60130502,3490.4,3490.3,2.3618]
[1721548746608,0.90237036,3490.5,3490.3,2.3618]
[1721548749343,0.60117265,3490.4,3490.3,2.3618]
[1721548749854,0.90237036,3490.5,3490.3,2.3618]
[1721548750229,0.60113116,3490.4,3490.3,2.3618]
[1721548753975,0.60113116,3490.5,3490.3,2.3618]
[1721548754822,0.60113116,3490.4,3490.3,2.3618]
[1721548755241,0.60113116,3490.5,3490.3,2.3618]
[1721548755857,0.60113116,3490.4,3490.3,2.3618]
[1721548761870,0.60113116,3490.5,3490.3,2.3618]
[1721548762455,0.60113116,3490.4,3490.3,2.3618]
[1721548766247,0.60113116,3490.5,3490.3,2.3618]
[1721548767536,0.60113116,3490.4,3490.3,2.3618]
[1721548767751,0.60113116,3490.5,3490.3,2.3618]
[1721548768051,0.60113116,3490.4,3490.3,2.3618]
[1721548770985,0.60113116,3490.4,3490.2,0.015]
[1721548771165,3.01543015,3490.3,3490.2,0.015]
[1721548771366,3.76745036,3490.3,3490.2,0.015]
[1721548776585,7.78274262,3490.3,3490.2,0.015]
[1721548778972,7.78265282,3490.3,3490.2,0.015]
[1721548781679,6.28016,3490.3,3490.2,0.015]
[1721548781887,7.30448528,3490.3,3490.2,0.015]
[1721548782125,4.43940528,3490.3,3490.2,0.015]
[1721548782283,5.64142026,3490.3,3490.2,0.015]
[1721548786925,4.61709498,3490.3,3490.2,0.015]
[1721548797022,3.41508,3490.3,3490.2,0.015]
[1721548798529,4.61709498,3490.3,3490.2,0.015]
[1721548800110,3.41508,3490.3,3490.2,0.015]
[1721548800434,4.61756798,3490.3,3490.2,0.015]
[1721548807325,8.38126698,3490.3,3490.2,0.015]
[1721548807491,8.68238317,3490.3,3490.2,0.015]
[1721548807694,7.178779,3490.3,3490.2,0.015]
[1721548809023,8.18251137,3490.3,3490.2,0.015]
[1721548810602,18.57575222,3490.3,3490.2,0.015]
[1721548810803,18.57575222,3490.3,3489.3,2.4381]
[1721548810804,2.86574,3489.5,3489.3,2.4381]
[1721548811000,0.90192312,3489.4,3489.3,2.4381]
[1721548812226,3.76766312,3489.5,3489.3,2.4381]
[1721548812621,0.90192312,3489.4,3489.3,2.4381]
[1721548813227,3.76774312,3489.4,3489.3,2.4381]
[1721548814514,2.86582,3489.4,3489.3,2.4381]
[1721548814907,2.866,3489.2,3488.5,2.86654]
[1721548815283,3.46683426,3489.2,3488.6,3.20101268]
[1721548816045,2.86617,3489.0,3488.6,3.20101268]
[1721548816219,2.86631,3488.8,3488.6,2.4181]
[1721548816451,2.86639,3488.7,3488.6,2.4181]
[1721548816732,2.86639,3488.7,3488.4,2.4181]
[1721548816932,3.46722426,3488.7,3488.4,2.4181]
[1721548817322,2.86639,3488.7,3488.4,2.4181]
[1721548817724,0.60083426,3489.0,3488.4,5.2847]
[1721548817921,0.60083426,3489.0,3488.5,2.86655]
[1721548818121,0.60083426,3489.1,3488.6,2.4181]
[1721548818324,0.60083426,3489.2,3488.7,2.86639]
[1721548818525,0.60083426,3489.3,3488.8,2.4181]
[1721548818735,2.86589,3489.4,3488.9,2.86621]
[1721548818736,0.60083426,3489.4,3488.9,2.86621]
[1721548818956,3.46649426,3489.6,3489.1,2.4181]
[1721548819461,2.86566,3489.6,3489.1,2.4181]
[1721548820041,3.46649426,3489.6,3489.1,2.4181]
[1721548820553,2.86566,3489.6,3489.1,2.4181]
[1721548821026,0.60083426,3489.7,3489.3,2.4181]
[1721548821226,0.60083426,3490.2,3489.7,5.28366]
[1721548821637,0.60083426,3490.3,3489.7,5.28366]
[1721548824264,3.46594426,3490.3,3489.7,2.4181]
[1721548824414,2.86528,3490.1,3489.7,2.4181]
[1721548824619,3.46611426,3490.1,3489.7,2.4181]
[1721548825562,0.60083426,3490.0,3489.7,2.4181]
[1721548825764,3.46611426,3490.1,3489.7,2.4181]
[1721548826167,1.20256417,3490.5,3489.7,2.4181]
[1721548826168,3.46619426,3490.0,3489.7,2.4181]
[1721548826468,2.86536,3490.0,3489.7,2.4181]
[1721548833336,3.46619426,3490.0,3489.7,2.4181]
[1721548835670,2.86536,3490.0,3489.7,2.4181]
[1721548835980,3.46619426,3490.0,3489.7,2.4181]
[1721548837539,0.60083426,3490.0,3489.7,2.4181]
[1721548837755,3.46599426,3490.2,3489.7,2.4181]
[1721548837955,3.46609426,3490.1,3489.7,2.4181]
[1721548838143,0.60083426,3490.1,3489.7,2.4181]
[1721548838343,3.76701312,3490.3,3489.7,2.4181]
[1721548838344,0.60083426,3490.0,3489.7,2.4181]
[1721548838555,3.46616426,3490.0,3489.7,2.4181]
[1721548839277,2.86533,3490.0,3489.7,2.4181]
[1721548842567,3.46616426,3490.0,3489.7,2.4181]
[1721548843571,2.86533,3490.0,3489.7,2.4181]
[1721548844856,0.60083426,3490.1,3489.7,2.4181]
[1721548850403,0.60083426,3490.3,3490.1,2.86524]
[1721548850613,0.60083426,3490.4,3490.2,2.3958]
[1721548850822,0.60083426,3490.5,3490.2,2.3958]
[1721548851126,0.60083426,3490.4,3490.2,2.3958]
[1721548851509,1.324077,3490.4,3489.7,2.3958]
[1721548851712,0.60083426,3490.3,3489.7,2.3958]
[1721548852018,0.60083426,3490.2,3489.7,5.26136]
[1721548852543,0.60083426,3490.3,3489.7,5.26136]
[1721548852952,0.60083426,3490.2,3489.7,5.26136]
[1721548854652,0.60083426,3490.3,3489.8,2.3098]
[1721548854869,0.60083426,3490.2,3489.8,2.3098]
[1721548855639,0.60083426,3490.3,3489.8,2.3098]
[1721548857435,0.60083426,3490.2,3489.8,2.3098]
[1721548857636,0.60083426,3490.3,3489.8,2.3098]
[1721548859869,0.60083426,3490.3,3489.8,5.17527]
[1721548860277,0.60083426,3490.3,3490.0,2.86531]
[1721548860488,2.86484,3490.6,3489.9,2.8654]
[1721548860489,0.60083426,3490.4,3489.9,2.8654]
[1721548860634,0.60083426,3490.5,3490.0,2.3098]
[1721548860978,0.60083426,3490.5,3490.0,5.17507]
[1721548861351,0.60083426,3490.5,3490.2,5.17496]
[1721548862398,0.60083426,3490.5,3490.3,2.86505]
[1721548862713,0.60083426,3490.6,3490.3,2.86505]
[1721548863517,0.60083426,3490.5,3490.3,2.86505]
[1721548864399,0.60083426,3490.5,3490.2,2.3098]
[1721548864566,0.60083426,3490.4,3490.2,2.3098]
[1721548866381,0.60083426,3490.3,3490.2,5.17494]
[1721548866582,1.20256417,3490.7,3490.2,5.17494]
[1721548866583,0.60083426,3490.4,3490.2,5.17494]
[1721548867289,0.60083426,3490.3,3490.2,2.3098]
[1721548867604,0.60083426,3490.4,3490.2,2.3098]
[1721548878715,1.15785042,3490.4,3489.7,2.2669]
[1721548879009,0.60015649,3490.1,3489.7,2.2669]
[1721548881181,3.46533649,3490.2,3489.7,2.2669]
[1721548881384,0.60015649,3490.2,3489.4,1.49409301]
[1721548881616,0.60015649,3490.3,3489.6,2.2587]
[1721548883317,0.60015649,3490.3,3489.9,2.86538]
[1721548883518,0.60015649,3490.3,3490.0,2.2587]
[1721548884949,0.60015649,3490.3,3490.0,5.12402]
[1721548890040,0.60015649,3490.3,3490.2,2.86516]
[1721548890261,0.60015649,3490.5,3490.3,2.86508]
[1721548891242,0.60015649,3490.5,3490.2,5.8207759]
[1721548891452,0.60015649,3490.4,3490.2,5.8207759]
[1721548891656,0.60015649,3490.4,3490.2,2.9556159]
[1721548891861,0.60015649,3490.4,3490.2,2.4375]
[1721548892832,0.60015649,3490.4,3490.0,5.30282]
[1721548893963,0.60015649,3490.3,3490.0,5.30282]
[1721548894483,0.60015649,3490.4,3490.0,5.30282]
[1721548896465,0.60015649,3490.4,3490.1,2.86524]
[1721548896767,0.60015649,3490.4,3490.1,3.682061]
[1721548897347,0.60015649,3490.5,3490.1,3.682061]
[1721548897766,0.90192312,3490.6,3490.1,3.682061]
[1721548897767,0.60015649,3490.4,3490.1,3.682061]
[1721548898287,0.60015649,3490.4,3490.1,2.86524]
[1721548903187,0.60015649,3490.4,3489.7,5.82449408]
[1721548903388,3.00955649,3490.3,3489.8,2.86549]
[1721548903597,0.60015649,3490.2,3489.8,2.86549]
[1721548903881,0.60015649,3490.1,3489.8,3.75545278]
[1721548905086,0.60015649,3490.2,3489.8,3.75545278]
[1721548905588,0.60015649,3490.1,3489.8,3.75545278]
[1721548905961,0.60015649,3490.2,3489.8,3.75545278]
[1721548906172,0.60015649,3490.1,3489.8,3.75545278]
[1721548908606,0.60015649,3490.2,3489.8,3.75545278]
[1721548908982,0.60015649,3490.1,3489.8,3.75545278]
[1721548914315,0.60015649,3490.1,3489.9,0.89787028]
[1721548914891,0.60015649,3490.3,3490.1,2.86523]
[1721548915293,0.90192312,3490.4,3490.1,2.86523]
[1721548915294,0.60015649,3490.4,3490.1,2.86523]
[1721548915518,0.60015649,3490.4,3490.1,3.76511903]
[1721548915716,0.90192312,3490.5,3490.1,3.76511903]
[1721548915717,0.60015649,3490.3,3490.1,3.76511903]
[1721548915886,0.60015649,3490.4,3490.1,3.76511903]
[1721548917214,0.60015649,3490.5,3490.3,2.86508]
[1721548917590,0.60015649,3490.6,3490.3,2.86508]
[1721548918829,0.60015649,3490.6,3490.5,2.86491]
[1721548918996,0.60015649,3490.7,3490.6,2.86483]
[1721548919326,0.60015649,3490.8,3490.6,2.86483]
[1721548919613,0.60015649,3490.9,3490.6,2.86483]
[1721548924044,0.60015649,3491.0,3490.6,2.86483]
[1721548924551,0.60015649,3491.0,3490.6,0.810016]
[1721548924856,0.60015649,3491.0,3490.5,2.3704]
[1721548924857,0.60015649,3491.2,3490.9,5.23499]
[1721548925132,0.60015649,3491.4,3490.9,5.23499]
[1721548925936,0.60015649,3491.4,3491.0,2.86449]
[1721548927303,0.60015649,3491.4,3490.9,2.3704]
[1721548928398,0.60015649,3491.4,3490.9,5.23497]
[1721548928827,0.60015649,3491.5,3490.9,5.23497]
[1721548929035,0.60015649,3491.4,3490.9,5.23497]
[1721548929337,0.60015649,3491.5,3490.9,5.23497]
[1721548929536,0.60015649,3491.5,3490.9,3.180372]
[1721548929738,0.60015649,3491.5,3491.3,2.3847]
[1721548930036,4.06634417,3491.9,3491.3,2.3847]
[1721548930037,0.60015649,3491.6,3491.3,2.3847]
[1721548930341,0.60015649,3491.7,3491.3,2.3847]
[1721548931925,0.60015649,3491.7,3491.3,5.24892]
[1721548932233,0.90192312,3491.9,3491.3,5.24892]
[1721548932234,0.60015649,3491.9,3491.3,5.24892]
[1721548932435,3.46385649,3492.0,3491.3,5.24892]
[1721548932735,0.60015649,3491.9,3491.3,5.24892]
[1721548933154,4.83992587,3492.0,3491.3,5.24892]
[1721548936729,4.23976938,3492.0,3491.3,5.24892]
[1721548939367,0.60015649,3492.2,3491.6,2.86394]
[1721548939541,6.23788642,3492.4,3491.5,2.2916]
[1721548939542,3.46359649,3492.3,3491.5,2.2916]
[1721548939745,3.46359649,3492.3,3491.6,2.864]
[1721548941146,2.86354,3492.2,3491.5,2.2916]
[1721548941471,3.83369029,3492.2,3491.5,5.15569]
[1721548942264,2.86354,3492.2,3491.5,5.15569]
[1721548942755,5.3359733,3492.4,3491.5,5.15569]
[1721548942756,5.93612979,3492.4,3491.6,2.86399]
[1721548943031,3.47482979,3492.4,3491.7,2.86392]
[1721548943263,2.8746733,3492.4,3491.8,2.2916]
[1721548944646,2.8746733,3492.4,3491.8,5.15543]
[1721548946266,2.8746733,3492.4,3491.8,2.2916]
[1721548946637,2.86344,3492.3,3491.8,2.2916]
[1721548947775,2.86353,3492.2,3491.6,2.86398]
[1721548948973,2.8747133,3492.4,3491.6,2.86398]
[1721548949299,2.86344,3492.3,3491.7,0.801973]
[1721548950655,2.86344,3492.3,3491.7,3.665903]
[1721548955088,2.86344,3492.3,3491.7,0.801973]
[1721548955391,2.86354,3492.2,3491.6,2.864]
[1721548956578,2.8746733,3492.4,3491.7,5.1937]
[1721548959360,3.47482979,3492.4,3491.7,5.1937]
[1721548959864,2.8746733,3492.4,3491.7,8.05757]
[1721548960060,2.8746733,3492.4,3491.7,5.19367]
[1721548961489,3.47482979,3492.4,3491.7,5.19367]
[1721548963871,0.60015649,3492.3,3491.7,5.19367]
[1721548964371,0.60015649,3492.3,3491.7,5.999444]
[1721548964567,0.60015649,3492.3,3491.8,5.19364]
[1721548964783,3.77659642,3492.4,3491.8,5.19364]
[1721548964784,0.60015649,3492.2,3491.8,5.19364]
[1721548966398,3.77659642,3492.4,3491.8,5.19364]
[1721548966399,0.60015649,3492.3,3491.8,5.19364]
[1721548966572,0.60015649,3492.3,3491.9,2.3298]
[1721548966769,0.61145979,3492.4,3492.0,2.86363]
[1721548966989,0.0113033,3492.4,3492.1,5.1934]
[1721548970310,0.59792793,3492.4,3492.1,5.1934]
[1721548970918,0.90192312,3492.6,3492.1,5.1934]
[1721548971098,0.90192312,3492.6,3492.2,0.805716]
[1721548971847,0.90192312,3492.6,3492.2,3.669216]
[1721548971991,3.76495312,3492.8,3492.2,3.669216]
[1721548972499,4.06544417,3493.0,3492.4,2.3101]
[1721548972500,3.76480312,3493.0,3492.4,2.3101]
[1721548972691,3.76480312,3493.0,3492.4,2.9080316]
[1721548973424,3.76480312,3493.0,3492.4,5.7713916]
[1721548976632,3.76480312,3493.0,3492.4,2.9080316]
[1721548976818,3.76480312,3493.0,3492.4,0.5979316]
[1721548976819,5.2929,3492.9,3492.4,0.5979316]
[1721548977131,2.86304,3492.8,3492.2,2.3144]
[1721548980237,0.59988476,3492.7,3492.2,2.3144]
[1721548980401,2.86322,3492.6,3492.2,2.3144]
[1721548980602,2.86322,3492.6,3491.9,2.86376]
[1721548980603,3.46310476,3492.6,3491.9,5.17816]
[1721548980814,3.46310476,3492.6,3492.0,0.517816]
[1721548981809,3.46310476,3492.6,3492.0,3.381476]
[1721548982009,0.59988476,3492.7,3492.1,2.3144]
[1721548983233,0.59988476,3492.7,3492.1,5.17798]
[1721548983433,0.59988476,3492.7,3492.2,0.8559556]
[1721548985419,0.59988476,3492.8,3492.3,2.86344]
[1721548985612,0.59988476,3492.8,3492.4,2.3144]
[1721548986436,0.59988476,3492.8,3492.4,5.17774]
[1721548986641,0.59988476,3492.8,3492.5,0.60336956]
[1721548986937,3.76480312,3493.0,3492.5,0.60336956]
[1721548986938,0.59988476,3492.6,3492.5,0.60336956]
[1721548987140,1.20256417,3492.7,3492.2,0.8559556]
[1721548987340,0.89974789,3492.4,3492.1,2.3144]
[1721548987643,0.59984959,3492.3,3492.1,2.3144]
[1721548988123,0.89974789,3492.5,3492.1,2.3144]
[1721548988124,0.59984959,3492.4,3492.1,2.3144]
[1721548988324,0.59984959,3492.3,3492.1,2.3144]
[1721548988529,0.59984959,3492.3,3492.2,0.517816]
[1721548993313,0.59984959,3492.4,3492.2,0.517816]
[1721548994248,0.59984959,3492.4,3492.1,2.3144]
[1721548995714,0.59984959,3492.3,3492.1,2.3144]
[1721548995914,0.59984959,3492.4,3492.1,2.3144]
[1721549001346,0.59984959,3492.3,3492.1,2.3144]
[1721549001632,0.59984959,3492.3,3492.2,0.517814]
[1721549004069,0.59984959,3492.3,3492.1,2.3144]
[1721549004217,0.89974789,3492.3,3491.5,8.70433375]
[1721549004414,0.59988121,3491.9,3491.5,8.70433375]
[1721549004619,0.59988121,3491.8,3491.5,8.70433375]
[1721549004839,0.59988121,3491.8,3491.6,1.15685637]
[1721549005038,0.59988121,3491.8,3491.5,2.4335]
[1721549005644,0.59988121,3491.9,3491.5,2.4335]
[1721549009023,0.59988121,3491.9,3491.5,5.29759]
[1721549009223,0.59988121,3492.0,3491.5,5.29759]
[1721549009482,0.59988121,3492.0,3491.6,0.529759]
[1721549011536,0.59988121,3491.9,3491.6,0.529759]
[1721549011963,0.59988121,3492.0,3491.6,3.393759]
[1721549023270,0.59988121,3492.0,3491.7,2.86393]
[1721549024965,0.59988121,3492.0,3491.7,3.7330649]
[1721549027543,0.59988121,3492.0,3491.8,2.392]
[1721549028437,0.59988121,3492.1,3492.0,5.72736]
[1721549028642,0.59988121,3492.5,3492.3,5.12784]
[1721549028945,1.20256417,3492.8,3492.3,5.12784]
[1721549028946,0.59988121,3492.6,3492.3,5.12784]
[1721549034969,0.59988121,3492.6,3492.3,2.2644]
[1721549035172,0.59988121,3492.7,3492.6,2.86319]
[1721549035373,0.59988121,3492.7,3492.6,5.789045]
[1721549035576,0.59988121,3492.8,3492.6,5.789045]
[1721549037404,0.59988121,3492.9,3492.6,5.789045]
[1721549037618,0.59988121,3492.9,3492.7,2.8631]
[1721549037795,0.59988121,3492.9,3492.8,5.21623]
[1721549038001,0.59988121,3493.1,3493.0,2.86286]
[1721549038177,0.59988121,3493.2,3493.1,2.86278]
[1721549038379,0.59988121,3493.3,3493.1,2.86278]
[1721549038584,0.59988121,3493.3,3492.9,2.86295]
[1721549038805,0.59988121,3493.3,3493.0,2.86286]
[1721549040603,0.59988121,3493.3,3492.9,0.89444915]
[1721549040770,0.59988121,3493.3,3492.9,3.75737915]
[1721549041094,0.59988121,3493.3,3492.9,0.89444915]
[1721549042298,0.59988121,3493.3,3492.9,3.75738915]
[1721549043102,0.59988121,3493.4,3492.9,3.75738915]
[1721549043303,0.59988121,3493.4,3493.0,0.61105892]
[1721549044309,0.59988121,3493.4,3492.9,2.86294]
[1721549047374,3.46234121,3493.5,3492.9,2.86294]
[1721549048107,3.46234121,3493.5,3492.5,5.24886]
[1721549048108,2.452,3493.3,3492.5,5.24886]
[1721549048312,2.86271,3493.2,3492.6,0.811229]
[1721549048899,2.86271,3493.2,3492.6,3.674419]
[1721549049992,3.05188121,3493.3,3492.6,3.674419]
[1721549050185,1.45590677,3493.2,3492.6,3.674419]
[1721549052290,0.59988121,3493.4,3492.7,2.8631]
[1721549052490,1.45588917,3493.3,3492.8,0.8923199]
[1721549052813,1.45588917,3493.3,3492.9,2.3398]
[1721549053106,0.59988121,3493.4,3492.9,5.20271]
[1721549053312,0.59988121,3493.5,3492.9,5.20271]
[1721549053490,1.45583508,3493.4,3493.0,0.05724862]
[1721549054211,1.45583508,3493.4,3493.0,0.95878647]
[1721549054599,3.46227121,3493.6,3493.0,0.95878647]
[1721549054911,1.45583037,3493.5,3493.0,0.95878647]
[1721549059820,1.45583037,3493.5,3493.0,0.90153785]
[1721549060182,4.31829037,3493.5,3492.9,5.20271]
[1721549060516,1.45583037,3493.4,3492.9,5.20271]
[1721549061118,1.45583037,3493.4,3493.0,2.86285]
[1721549061577,3.46227121,3493.6,3493.0,2.86285]
[1721549061784,1.45582107,3493.5,3493.0,2.86285]
[1721549062114,1.45582107,3493.5,3493.1,0.520265]
[1721549062614,1.45582107,3493.5,3493.2,2.4312]
[1721549063927,1.45582107,3493.5,3493.2,5.2939]
[1721549064222,0.59988121,3493.7,3493.2,5.2939]
[1721549064401,2.05563697,3493.6,3493.2,5.2939]
[1721549064589,1.45575576,3493.5,3493.2,5.2939]
[1721549064783,1.45575576,3493.5,3493.3,0.5814165]
[1721549065189,0.59988121,3493.7,3493.3,0.5814165]
[1721549065419,2.0556367,3493.6,3493.3,0.5814165]
[1721549065620,1.45575549,3493.5,3493.3,0.5814165]
[1721549066719,0.59988121,3493.7,3493.3,0.5814165]
[1721549066937,1.45575467,3493.6,3493.3,0.5814165]
[1721549067423,2.05563588,3493.6,3493.3,0.5814165]
[1721549067738,1.45575467,3493.5,3493.3,0.5814165]
[1721549068227,1.45575467,3493.5,3493.4,0.63955815]
[1721549068939,0.59988121,3494.0,3493.5,2.4907]
[1721549069091,0.89974789,3494.2,3493.6,2.86231]
[1721549069092,0.59988121,3494.2,3493.6,2.86231]
[1721549069291,0.59988121,3494.2,3493.6,3.80596147]
[1721549070208,0.59988121,3494.2,3493.7,2.86228]
[1721549070829,0.59988121,3494.2,3493.8,2.8622]
[1721549071130,0.59988121,3494.2,3493.9,2.4907]
[1721549071533,0.59988121,3494.1,3493.6,6.12936147]
[1721549071839,0.59988121,3494.1,3493.6,0.94365147]
[1721549071999,0.59988121,3494.1,3493.6,3.80599147]
[1721549073835,0.59988121,3494.1,3493.7,0.61293915]
[1721549074197,0.59988121,3494.1,3493.8,2.3132]
[1721549075935,0.59988121,3494.2,3493.8,5.1754]
[1721549077234,0.59988121,3494.3,3493.8,5.1754]
[1721549077436,0.59988121,3494.3,3493.9,0.57883391]
[1721549081220,3.46168121,3494.3,3493.8,2.3132]
[1721549081419,2.86197,3494.1,3493.7,0.61293915]
[1721549081652,2.86197,3494.1,3493.6,2.4331]
[1721549081981,3.46185121,3494.1,3493.6,2.4331]
[1721549082965,3.46185121,3494.1,3493.4,5.29559]
[1721549083834,3.46185121,3494.1,3493.4,5.29558]
[1721549084035,3.46185121,3494.1,3493.5,0.815826]
[1721549085275,2.86197,3494.1,3493.5,0.815826]
[1721549085633,3.46185121,3494.1,3493.5,0.815826]
[1721549088243,2.86197,3494.1,3493.5,0.815826]
[1721549088461,0.59988121,3494.2,3493.5,3.678266]
[1721549088656,0.59988121,3494.2,3493.6,0.8973976]
[1721549088860,3.46177121,3494.2,3493.6,0.8973976]
[1721549090273,3.46177121,3494.2,3493.6,3.7597676]
[1721549090642,3.46177121,3494.2,3493.7,2.4919]
[1721549092273,0.59988121,3494.1,3493.7,2.4919]
[1721549092669,3.46177121,3494.2,3493.7,2.4919]
[1721549092873,2.86196,3494.1,3493.6,0.8973976]
[1721549093077,2.86196,3494.1,3493.5,5.35434]
[1721549093242,3.46184121,3494.1,3493.5,5.35434]
[1721549100250,0.59988121,3494.0,3493.5,5.35434]
[1721549102483,0.59988121,3494.0,3493.7,2.86223]
[1721549103455,0.59988121,3494.0,3493.5,5.35434]
[1721549103667,0.59988121,3494.1,3493.6,0.535434]
[1721549103985,0.59988121,3494.1,3493.7,2.86227]
[1721549105189,0.59988121,3494.0,3493.6,0.535434]
[1721549105480,0.59988121,3494.0,3493.6,3.397794]
[1721549106398,0.59988121,3494.0,3493.7,5.35413]
[1721549106697,0.59988121,3494.0,3493.8,0.8751994]
[1721549108110,0.59988121,3494.1,3493.9,2.86213]
[1721549109794,0.59988121,3494.1,3493.8,0.8751994]
[1721549109795,2.99008121,3494.1,3493.6,0.535434]
[1721549109963,2.99008121,3494.1,3493.3,2.4265]
[1721549109964,0.59988121,3493.9,3493.4,2.86248]
[1721549110161,0.59988121,3493.8,3493.5,0.815168]
[1721549110367,0.59988121,3493.7,3493.1,5.28927]
[1721549110566,0.59988121,3493.7,3493.2,3.0]
[1721549110807,0.59988121,3493.6,3493.2,3.0]
[1721549111513,0.59988121,3493.5,3493.0,9.13369375]
[1721549111708,0.59988121,3493.4,3493.0,2.86286]
[1721549111910,0.59988121,3493.4,3493.1,0.67819997]
[1721549112083,0.59988121,3493.3,3493.1,0.67819997]
[1721549112484,0.59988121,3493.4,3493.1,0.67819997]
[1721549112714,0.59988121,3493.4,3493.1,3.54094997]
[1721549113719,0.59988121,3493.5,3493.1,3.54094997]
[1721549113910,0.59988121,3493.4,3493.2,0.596745]
[1721549115419,0.59988121,3493.3,3493.2,0.596745]
[1721549116200,0.59988121,3493.4,3493.2,0.596745]
[1721549119405,0.59988121,3493.5,3493.2,0.596745]
[1721549121204,0.59988121,3493.5,3493.3,2.2853]
[1721549124233,0.59988121,3493.6,3493.3,2.2853]
[1721549124649,0.59988121,3493.6,3493.3,3.15178221]
[1721549125709,0.59988121,3493.6,3493.5,2.86245]
[1721549126970,0.6007491,3493.6,3493.4,2.86247]
[1721549127572,0.6007491,3493.6,3493.5,2.86245]
[1721549127714,0.60077074,3493.6,3493.5,2.86245]
[1721549129362,2.05635074,3493.6,3493.5,2.86245]
[1721549130223,2.05635074,3493.6,3493.5,3.75012822]
[1721549130580,1.45558,3493.6,3493.5,6.22452822]
[1721549130726,1.5018479,3494.2,3494.1,2.86196]
[1721549130727,0.60077074,3494.2,3494.1,2.86196]
[1721549131061,0.60077074,3494.4,3494.1,3.43436]
[1721549131265,0.60077074,3494.4,3494.3,2.8618]
[1721549131965,0.60077074,3494.5,3494.3,2.8618]
[1721549133131,0.60077074,3494.5,3494.4,2.86172]
[1721549134223,0.60077074,3494.6,3494.4,2.86172]
[1721549135324,0.60077074,3494.6,3494.4,3.68152]
[1721549137239,0.60077074,3494.7,3494.4,3.68152]
[1721549137856,0.60077074,3494.6,3494.4,3.68152]
[1721549138245,0.60077074,3494.7,3494.4,3.68152]
[1721549138544,0.60077074,3494.7,3494.4,2.86172]
[1721549138750,0.60077074,3494.7,3494.5,2.86163]